Cogmind - Beta 11.1 @@@ ROGUE MODE // 2022.07.06 @ 19:23:56 Player: Artem Result: Destroyed by G-47 Trooper with Particle Gun Performance ------------- Evolutions (1) 500 Regions Visited (6) 1200 Robots Destroyed (22) 110 Value Destroyed (655) 655 Prototype IDs (2) 40 Alien Tech Used (0) 0 Bonus (300) 300 TOTAL SCORE: 2805 Bonus ------- Aligned with FarCom 300 Cogmind --------- Core Integrity 0/400 Matter 299/300 Energy 99/100 System Corruption 12% Temperature Cool (9) Movement Core (50) Location -8/Mines Parts ------- > --- POWER (1) -------- (None) > --- PROPULSION (2) --- (None) > --- UTILITY (2) ------ (None) > --- WEAPON (4) ------- (None) > --- INVENTORY (5) ---- Large Storage Unit Peak State ------------ > --- POWER ------------ Ion Engine > --- PROPULSION ------- Wheel Wheel > --- UTILITY ---------- Transmission Jammer Tractor Beam > --- WEAPON ----------- Latent Energy Streamer YOLO Cannon Remote Datajack > --- INVENTORY -------- Matter Filter [Rating: 42] Favorites ----------- Power Ion Engine Engine Ion Engine Propulsion Light Treads Treads Light Treads Wheel Wheel Utility Tractor Beam Device Tractor Beam Storage High-capacity Storage Unit Processor Improved Terrain Scan Processor Protection Hardened Medium Armor Plating Weapon High-powered Shotgun Energy Cannon Latent Energy Streamer Ballistic Gun High-powered Shotgun Launcher Rocket Launcher Special Weapon Remote Datajack Impact Weapon Power Maul Build | -11 -10 -10 -9 -9 -9 -8 ------- Run | Scr Mat Min Mat Min Exi Min Slots Evolved 2 | . . . 2 . . . Power . | . . . . . . . Propulsion . | . . . . . . . Utility . | . . . . . . . Weapon 2 | . . . 2 . . . Parts Attached 46 | 8 4 . 9 17 3 5 Power 4 | 1 . . 1 2 . . Engine 4 | 1 . . 1 2 . . Core . | . . . . . . . Reactor . | . . . . . . . Propulsion 8 | 2 . . 1 5 . . Treads 3 | 2 . . 1 . . . Leg . | . . . . . . . Wheel 5 | . . . . 5 . . Hover . | . . . . . . . Flight . | . . . . . . . Utility 13 | 2 2 . 1 5 . 3 Device 5 | 1 1 . . 2 . 1 Storage 3 | 1 1 . . . . 1 Processor 1 | . . . . . . 1 Hackware . | . . . . . . . Protection 4 | . . . 1 3 . . Artifact . | . . . . . . . Weapon 21 | 3 2 . 6 5 3 2 Energy Gun . | . . . . . . . Energy Cannon 2 | . . . . . 2 . Ballistic Gun 15 | 3 2 . 6 3 . 1 Ballistic Cannon . | . . . . . . . Launcher 1 | . . . . 1 . . Special Weapon 2 | . . . . . 1 1 Impact Weapon 1 | . . . . 1 . . Slashing Weapon . | . . . . . . . Piercing Weapon . | . . . . . . . Special Melee Weapon . | . . . . . . . Unidentified Prototypes 2 | . . . . . 2 . Parts Lost 17 | . 1 . . 8 . 8 Power 2 | . . . . 1 . 1 Propulsion 4 | . . . . 2 . 2 Utility 6 | . 1 . . 2 . 3 Weapon 5 | . . . . 3 . 2 Highest Loss Streak 6 | . 1 . . 6 . 3 To Critical Strikes 1 | . . . . 1 . . Average Slot Usage (%) 81 | . 99 100 99 91 88 49 Engine 9 | . 14 14 11 9 11 4 Treads 10 | . 28 28 21 6 . . Wheel 7 | . . . . 11 22 10 Device 11 | . 13 14 11 9 22 9 Storage 5 | . 14 14 5 . . 4 Processor 1 | . . . . . . 4 Protection 3 | . . . 5 11 . . Energy Cannon 4 | . . . . . 11 11 Ballistic Gun 23 | . 28 28 43 32 16 3 Launcher 1 | . . . . 4 . . Impact Weapon 1 | . . . . 4 5 . Naked Turns 60 | . . . . . . 60 Heaviest Build 54 | 14 49 48 52 31 35 54 Greatest Support 40 | 40 40 40 40 40 20 20 Greatest Overweight (x) 9 | . 1 1 1 9 1 5 Average Overweight (x) . | . . 1 . . . 1 Largest Inventory Capacity 20 | 8 20 20 20 5 5 15 Average Capacity 8 | 7 11 20 12 5 5 8 Most Carried 9 | 3 5 5 9 5 5 3 Average Carried 2 | 1 4 5 2 1 2 1 Final Capacity 20 | 8 20 20 5 5 5 5 Final Carried 5 | 3 5 5 2 2 3 1 Class Distribution -------------------- 38% | Mutant 19% | Tank 18% | Scavenger-Gunner 13% | Skirmisher 7% | Gunner Dominant Class ---------------- Mutant | -10/Materials Mutant | -10/Mines Tank | -9/Materials Tank | -9/Mines Scavenger-Gunner | -9/Exiles Mutant | -8/Mines Resources | -11 -10 -10 -9 -9 -9 -8 ----------- Run | Scr Mat Min Mat Min Exi Min Matter Collected 1126 | 296 110 36 139 471 . 74 Remotely 445 | . 53 32 139 221 . . Salvage Created 841 | 101 324 . 121 75 . 220 Parts 42 | 8 19 1 5 . . 9 Haulers Intercepted 1 | . 1 . . . . . Recyclers Shooed . | . . . . . . . Parts Field Recycled . | . . . . . . . Retrieved Matter . | . . . . . . . Parts Self-Destructed . | . . . . . . . Prevented . | . . . . . . . Kills | -11 -10 -10 -9 -9 -9 -8 ------- Run | Scr Mat Min Mat Min Exi Min Combat Hostiles Destroyed 31 | . 9 . 3 15 . 4 Guns 19 | . 9 . 3 7 . . Cannons 1 | . . . . . . 1 AOE 11 | . . . . 8 . 3 Classes Destroyed 9 | 2 3 1 1 2 . . Worker 1 | . . 1 . . . . Tunneler 1 | 1 . . . . . . Hauler 1 | . 1 . . . . . Recycler 1 | 1 . . . . . . Watcher 1 | . . . 1 . . . Swarmer 3 | . 3 . . . . . Grunt 13 | . 6 . 3 . . 4 Demolisher 1 | . . . . 1 . . Assembled 14 | . . . . 14 . . Best Kill Streak 9 | 2 4 1 4 9 . 3 Combat Bots Only 9 | . 3 . 2 9 . 3 Max Kills in Single Turn 3 | 1 1 1 1 3 . 3 Gunslinging . | . . . . . . . Exploded 2 | . . . . 2 . 2 Melee . | . . . . . . . Uniques/NPCs Destroyed . | . . . . . . . Combat | -11 -10 -10 -9 -9 -9 -8 -------- Run | Scr Mat Min Mat Min Exi Min Damage Taken 2901 | . 316 . 131 1323 . 1131 Core 429 | . 24 . . 166 . 239 Absorbed by Shields . | . . . . . . . Redirected to Shielding 53 | . . . 7 46 . . Regen/Repaired (Parts) 108 | . . . 108 . . . Core Remaining (%) 95 | 100 . 90 . . . . Volleys Fired 58 | 4 27 . 6 19 . 2 Largest 4 | 2 2 . 4 4 . 2 Hottest 160 | 40 40 . 100 100 . 160 Shots Fired 157 | 8 54 . 24 67 . 4 Gun 146 | 8 54 . 24 60 . . Cannon 4 | . . . . . . 4 Launcher 7 | . . . . 7 . . Special . | . . . . . . . Kinetic 146 | 8 54 . 24 60 . . Thermal 2 | . . . . . . 2 Explosive 7 | . . . . 7 . . Electromagnetic 2 | . . . . . . 2 Robot Hit Streak 10 | 4 10 . 5 3 . 3 Robot Miss Streak 11 | 2 3 . 8 11 . 1 Penetration Max . | . . . . . . . Secondary Targets 4 | . 2 . . 2 . . Max Gunslinging Chain 1 | . 1 . . 1 . . Shots Hit Robots 78 | 5 35 . 7 29 . 2 Core Hits 66 | 3 18 . 4 33 . 8 Critical Kills . | . . . . . . . Critical Parts Destroyed 1 | . . . . 1 . . Critical Strikes 1 | . . . . 1 . . Destroy 1 | . . . . 1 . . Melee Attacks . | . . . . . . . Impact . | . . . . . . . Slashing . | . . . . . . . Piercing . | . . . . . . . Sneak Attacks . | . . . . . . . Combat Hostiles . | . . . . . . . Follow-up Attacks . | . . . . . . . Damage Inflicted 2069 | 52 382 3 124 985 . 523 Guns 1051 | 52 375 . 124 500 . . Cannons 108 | . . . . . . 108 Explosions 830 | . . . . 483 . 347 Melee . | . . . . . . . Ramming 80 | . 7 3 . 2 . 68 Kinetic 1051 | 52 375 . 124 500 . . Thermal 176 | . . . . . . 176 Explosive 483 | . . . . 483 . . Electromagnetic 279 | . . . . . . 279 Impact . | . . . . . . . Slashing . | . . . . . . . Piercing . | . . . . . . . Highest Corruption 12 | . . . . . . 12 Average Corruption 7 | . . . . . . 7 Corruption Purged . | . . . . . . . Corruption Blocked . | . . . . . . . Effects 26 | . . . . . . 26 Message Errors 1 | . . . . . . 1 Matter Fused 6 | . . . . . . 6 Heat Flow Errors 7 | . . . . . . 7 Energy Discharges 3 | . . . . . . 3 Data Loss (minor) 3 | . . . . . . 3 Data Loss (major) 1 | . . . . . . 1 Alerts 3 | . . . . . . 3 Misdirections 2 | . . . . . . 2 Overload Shots . | . . . . . . . Overflow Damage 45 | . . . . . . 45 Projectiles . | . . . . . . . Explosions 45 | . . . . . . 45 Melee . | . . . . . . . Knockbacks . | . . . . . . . Impact . | . . . . . . . Kinetic . | . . . . . . . Secondary . | . . . . . . . Self-Inflicted Damage 351 | . . . . 124 . 227 Shots 7 | . . . . 4 . 3 Rammed 23 | . 3 . . 2 . 18 Targets Rammed 25 | . 4 1 . 2 . 18 Kicked . | . . . . . . . Crushed 2 | . 1 1 . . . . Highest Temperature 267 | . 18 . 43 214 . 267 Average Temperature 67 | . 9 . 20 82 . 88 Received Heat Transfer 768 | . 153 . 24 60 . 531 Siege Activations . | . . . . . . . Robots Corrupted . | . . . . . . . Combat Hostiles . | . . . . . . . Parts Fried 1 | . . . . . . 1 Impact Corruptions . | . . . . . . . Robots Melted . | . . . . . . . Combat Hostiles . | . . . . . . . Parts Melted . | . . . . . . . Heat Transferred 80 | . . . . . . 80 Parts Sabotaged . | . . . . . . . Parts Stolen . | . . . . . . . Parts Stripped . | . . . . . . . Power Chain Reactions . | . . . . . . . Missiles Intercepted . | . . . . . . . Latent Energy Used 244 | . . . . . . 244 LE Corruption 5 | . . . . . . 5 Alert | -11 -10 -10 -9 -9 -9 -8 ------- Run | Scr Mat Min Mat Min Exi Min Peak Influence 228 | 10 228 15 164 100 . 114 Initial 10 | . 6 10 5 5 . . Average 60 | 5 103 11 46 37 . 68 Maximum Alert Level 1 | . 1 . . . . . Low Security (%) 95 | 100 74 100 100 100 . 100 Level 1 4 | . 25 . . . . . Level 2 . | . . . . . . . Level 3 . | . . . . . . . Level 4 . | . . . . . . . Level 5 . | . . . . . . . High Security . | . . . . . . . Max Security . | . . . . . . . Squads Dispatched 4 | . 1 . 2 1 . . Investigation 3 | . 1 . 1 1 . . Extermination . | . . . . . . . Reinforcement 1 | . . . 1 . . . Assault . | . . . . . . . Garrison . | . . . . . . . Intercept . | . . . . . . . Searches Triggered . | . . . . . . . Construction Impeded . | . . . . . . . Haulers Reinforced . | . . . . . . . Active Scanning Responses . | . . . . . . . Cargo Convoy Interrupts . | . . . . . . . Stealth | -11 -10 -10 -9 -9 -9 -8 --------- Run | Scr Mat Min Mat Min Exi Min Distress Signals 1 | . 1 . . . . . Communications Jammed . | . . . . . . . Distress Signals . | . . . . . . . Times Spotted 61 | . 12 . 15 23 . 11 Peak Tracking Total 13 | . 4 . 8 13 . 6 Tactical Retreats 6 | . . . . 2 . 4 Traps | -11 -10 -10 -9 -9 -9 -8 ------- Run | Scr Mat Min Mat Min Exi Min Traps Triggered 2 | . 1 . 1 . . . Indirectly . | . . . . . . . Trap Hack Attempts . | . . . . . . . Triggered . | . . . . . . . Disarmed . | . . . . . . . Reprogrammed . | . . . . . . . Reused . | . . . . . . . Traps Extracted . | . . . . . . . Installed . | . . . . . . . Triggered . | . . . . . . . Machines | -11 -10 -10 -9 -9 -9 -8 ---------- Run | Scr Mat Min Mat Min Exi Min Machines Disabled 3 | . . . 2 1 . . Max in Single Turn 1 | . . . 1 1 . . Machines Sabotaged . | . . . . . . . Garrisons Compromised . | . . . . . . . Overloaded Fab Kills . | . . . . . . . Hacking | -11 -10 -10 -9 -9 -9 -8 --------- Run | Scr Mat Min Mat Min Exi Min Machines Accessed 6 | . 2 . 3 1 . . Terminals 2 | . 1 . 1 . . . Fabricators . | . . . . . . . Repair Stations 1 | . . . 1 . . . Recycling Units 1 | . 1 . . . . . Scanalyzers 1 | . . . 1 . . . Garrison Access . | . . . . . . . Total Hacks 12 | . 5 . 6 1 . . Successful 7 | . 1 . 5 1 . . Failed 5 | . 4 . 1 . . . Catastrophic 1 | . . . 1 . . . Database Lockouts . | . . . . . . . Manual 1 | . . . . . 1 . Terminals 3 | . 2 . 1 . . . Fabricators . | . . . . . . . Repair Stations 3 | . . . 3 . . . Recycling Units 3 | . 3 . . . . . Scanalyzers 2 | . . . 2 . . . Garrison Access . | . . . . . . . Terminal Hacks 1 | . . . . 1 . . Open Door 1 | . . . . 1 . . Fabricator Hacks . | . . . . . . . Repair Station Hacks 3 | . . . 3 . . . Scan Component 2 | . . . 2 . . . Repair 1 | . . . 1 . . . Recycling Unit Hacks 1 | . 1 . . . . . Retrieve Components 1 | . 1 . . . . . Scanalyzer 2 | . . . 2 . . . Insert Component 1 | . . . 1 . . . Analyze 1 | . . . 1 . . . Garrison Access Hacks . | . . . . . . . Unauthorized Hacks . | . . . . . . . Terminals . | . . . . . . . Fabricators . | . . . . . . . Repair Stations . | . . . . . . . Recycling Units . | . . . . . . . Scanalyzers . | . . . . . . . Garrison Access . | . . . . . . . Data Cores Recovered . | . . . . . . . Used . | . . . . . . . Hacking Detections 4 | . 2 . 2 . . . Full Trace Events 2 | . 1 . 1 . . . Feedback Events . | . . . . . . . Feedback Blocked . | . . . . . . . Robot Schematics Acquired . | . . . . . . . Robots Built . | . . . . . . . Authchips . | . . . . . . . Time . | . . . . . . . Total Robot Build Rating . | . . . . . . . Part Schematics Acquired 1 | . . . 1 . . . Parts Built . | . . . . . . . Authchips . | . . . . . . . Time . | . . . . . . . Total Part Build Rating . | . . . . . . . Parts Repaired 1 | . . . 1 . . . Time 26 | . . . 26 . . . Parts Recycled . | . . . . . . . Recycled Matter . | . . . . . . . Retrieved Matter . | . . . . . . . Retrieved Components 10 | . 10 . . . . . Parts Scanalyzed 1 | . . . 1 . . . Part Schematics Acquired 1 | . . . 1 . . . Parts Damaged . | . . . . . . . Bothacking | -11 -10 -10 -9 -9 -9 -8 ------------ Run | Scr Mat Min Mat Min Exi Min Used RIF Installer . | . . . . . . . Robots Hacked . | . . . . . . . Non-combat . | . . . . . . . Combat . | . . . . . . . Robot Hacks Applied . | . . . . . . . Relay Couplers Released . | . . . . . . . Fabnet Peak Effective % . | . . . . . . . Robots Rewired . | . . . . . . . Allies Hacked . | . . . . . . . Hacks Repelled . | . . . . . . . Allies | -11 -10 -10 -9 -9 -9 -8 -------- Run | Scr Mat Min Mat Min Exi Min Total Allies . | . . . . . . . Largest Group . | . . . . . . . Highest-Rated Group . | . . . . . . . Highest-Rated Ally . | . . . . . . . Total Orders . | . . . . . . . Ally Attacks . | . . . . . . . Total Damage . | . . . . . . . Kills . | . . . . . . . Allies Corrupted . | . . . . . . . Allies Melted . | . . . . . . . Intel | -11 -10 -10 -9 -9 -9 -8 ------- Run | Scr Mat Min Mat Min Exi Min Robot Analysis Total . | . . . . . . . Derelict Logs Recovered 2 | . . 1 . 1 . . Drone Launches . | . . . . . . . Drone Recoveries . | . . . . . . . Exploration | -11 -10 -10 -9 -9 -9 -8 ------------- Run | Scr Mat Min Mat Min Exi Min Turns Passed 2651 | 83 467 56 430 613 224 778 Spaces Moved 1785 | 37 200 23 172 422 248 683 Core 338 | 1 . . . 4 . 333 Treads 526 | 36 200 23 172 95 . . Legs . | . . . . . . . Wheels 921 | . . . . 323 248 350 Hover . | . . . . . . . Flight . | . . . . . . . Fastest Speed 50 | 50 160 240 160 80 80 50 Average Speed 120 | 157 182 240 197 118 86 91 Slowest Speed 500 | 160 240 240 240 500 95 155 Overloaded Moves . | . . . . . . . Propulsion Burnouts . | . . . . . . . Robots Hopped . | . . . . . . . Cave-ins Triggered . | . . . . . . . Exploration Rate (%) 43 | 4 35 17 25 81 61 79 Regions Visited 6 Branch Regions 4 Pre-discovered Areas 1 | . . 1 . . . . Known Exits Taken . | . . . . . . . Unknown Exits Taken 6 | 1 1 1 1 1 1 . Scrap Searched 4 | . . 1 . 2 . 1 Spaces Dug . | . . . . . . . Terrain Destroyed 102 | . . . . 50 . 52 Melee . | . . . . . . . Projectile 1 | . . . . . . 1 AOE 101 | . . . . 50 . 51 Terrain Rammed . | . . . . . . . Walls Destroyed . | . . . . . . . Machines Disabled . | . . . . . . . Actions | -11 -10 -10 -9 -9 -9 -8 --------- Run | Scr Mat Min Mat Min Exi Min Total 2126 | 51 251 23 250 483 258 810 Wait 174 | . 14 . 51 10 . 99 Move 1779 | 36 199 22 171 421 247 683 Hop . | . . . . . . . Pick Up 21 | 3 2 . 6 6 3 1 Fast Attach 15 | 7 . . 1 5 . 2 Attach 16 | . 1 . 6 3 3 3 Detach 1 | . . . . . 1 . Swap 15 | 1 3 . 2 9 . . Drop 20 | . 1 . 7 8 4 . Fire 58 | 4 27 . 6 19 . 2 Melee . | . . . . . . . Ram 20 | . . . . . . 20 Kick . | . . . . . . . Crush 7 | . 4 1 . 2 . . Escape Stasis . | . . . . . . . Rewire . | . . . . . . . Trap . | . . . . . . . Miscellaneous . | . . . . . . . Route ------- -11/Scrapyard -10/Materials -10/Mines -9/Materials -9/Mines -9/Exiles -8/Mines History --------- Turn | Location | Event 59 | -11/Scrapyard | Discovered new exit (range 15) 84 | -11/Scrapyard | Entered Materials 313 | -10/Materials | Build established: Mutant 536 | -10/Materials | Discovered new exit (range 7) 551 | -10/Materials | Entered Mines 554 | -10/Mines | Learned location of Storage (-8) 592 | -10/Mines | Discovered new exit (range 7) 607 | -10/Mines | Entered Materials 607 | -9/Materials | Evolved 2 slots: Weapon x2 929 | -9/Materials | Discovered new exit (range 16) 979 | -9/Materials | Repaired Lgt. Treads 1037 | -9/Materials | Entered Mines 1079 | -9/Mines | Learned location of 1 exit from Proximity Caves 1085 | -9/Mines | Assembled infested the area 1099 | -9/Mines | Received a Rocket Launcher from a helpful Derelict 1131 | -9/Mines | Build established: Tank 1177 | -9/Mines | Destroyed 9 combat bots 1180 | -9/Mines | Lost 6 parts (1p1n2u2w) 1377 | -9/Mines | Met a Derelict shopkeep closing up shop 1647 | -9/Mines | Deemed a non-threat by the Exiles lab entrance 1647 | -9/Mines | Discovered new exit (range 5) 1650 | -9/Mines | Entered Exiles 1670 | -9/Exiles | Met 8R-AWN 1683 | -9/Exiles | Met EX-HEX 1699 | -9/Exiles | Build established: Scavenger-Gunner 1718 | -9/Exiles | Met EX-BIN 1729 | -9/Exiles | Aligned with FarCom system 1730 | -9/Exiles | Given EX-Vault access code 1748 | -9/Exiles | Opened EX-Vault 1752 | -9/Exiles | Found Prototype Energy Cannon 1756 | -9/Exiles | Found Prototype Energy Cannon 1762 | -9/Exiles | Identified YOLO Cannon 1763 | -9/Exiles | Identified Latent Energy Streamer 1783 | -9/Exiles | Warned to stay clear of 0b10 Research branches 1813 | -9/Exiles | Met EX-DEC 1863 | -9/Exiles | Discovered new exit (range 14) 1874 | -9/Exiles | Stole two prototypes: Latent Energy Streamer, YOLO Cannon 1874 | -9/Exiles | Entered Mines 2173 | -8/Mines | Build established: Skirmisher 2285 | -8/Mines | Core integrity fell below 50% 2293 | -8/Mines | System corruption reached 10% 2306 | -8/Mines | Released all parts (3) 2329 | -8/Mines | Lost 3 parts (1n1u1w) 2544 | -8/Mines | Build established: Mutant 2614 | -8/Mines | Core integrity fell below 20% 2651 | -8/Mines | Released all parts (1) 2652 | -8/Mines | Destroyed by G-47 Trooper with Particle Gun Last Messages --------------- 02505_ Acquired Lrg. Storage Unit. 02533_ System corrupted: Matter fused (-9). 02564_ System corrupted: Energy discharge (-36). 02580_ System corrupted: IFF burst signal emitted. 02613_ Slammed into G-50 Soldier. 02613_ Destabilizing: System interference. 02613_ Imp. Terrain Scan Processor temporarily disabled. 02613_ Hvy. Assault Rifle temporarily disabled. 02615_ Slammed into G-47 Trooper. 02616_ Destabilizing: Core damaged (-4). 02617_ Slammed into G-47 Trooper. 02617_ Destabilizing: Core damaged (-8). 02618_ Slammed into G-47 Trooper. 02618_ Hvy. Assault Rifle destroyed. 02619_ Slammed into G-47 Trooper. 02620_ System corrupted: Heat flow error (+169). 02628_ G-47 Trooper suffers critical hit (Burn). 02642_ System corrupted: Heat flow error (+148). 02648_ Matter Filter destroyed. 02651_ Released Imp. Terrain Scan Processor. Map ----- +----------------------------------------------------+ | ?????????????????????????????????????????????????? | | ?????????????????????????????????????????????????? | | ?????????????????????????????????????????????????? | | ????????????????????????????????????????#########? | | ????????????????????????????????????????# #? | | ????????????????????????????????????????# #? | | ????????????????????????????????????????# """ #? | | ????????????????????????????????????????# """ #? | | ????????????????????????????????????????# """ #? | | ????????????????????????????????????????# #? | | ????????????????????????????????????????# #? | | ????????????????????????????????????????#### ####? | | ???????????????????????????????????????????# #???? | | ???????????????????????????????????????????# #???? | | ???????????????????????????????????????????# #???? | | ???????????????????????????????????????????# #???? | | ???????????????????????????????????????????# #???? | | ???????????????????????????????????????????# #???? | | ???????????????????????????????????????##### ##??? | | ###????????????????????????####???????## ##?? | | #???????????????????????## #####???# #?? | | #????????#########?????## ##??# #?? | | #???????## ## ##???## #### ##?? | | #???????# ##?## gg ####??? | | #???????## ### g ##?????? | | #????????###### @ #########??????? | | #?????????????## ####??????????? | | #??????????????## l ##?????????? | | #???????????????## #?????????? | | ###???????????????## gg #?????????? | | ????????????????### ### ## ###?????????? | | ###????????????## ####?## ### #?????????#?? | | ##???????????# ##?????####?# #??????? #?? | | #???????????# t##???????????# #?????? #?? | | #???####????# ###????????????# #??### #??? | | #??## ##???# ##??????????????# #?# #??? | | ##??# ##### #???????????????# ## #???? | | ###???# ##?####?????????# # #????? | | #?????# ### ##????????# #??????? | | ??????# #????????# ## ##??????? | | ####### % #????????# #??##???????? | | % % ## ##???????# #???????????? | | ###### #???????# #???????????? | | ###### ##????## ##??????# #???????????? | | #????#####??????## ######## #???????????? | | #????????????????## #???????????? | | #????????????????## #???????????? | | #??????????????### ######???????????? | | #?????????????## """ ##????????????????? | | ##?????????????# """ ##?????????????????? | +----------------------------------------------------+ Best States ------------- Heat Dissipation 28 Energy Generation 10 Energy Capacity 250 Matter Stores 300 Matter Capacity 300 Sight Range 16 Terrain Scan Density 110 Jamming Range 12 Armor Coverage 450 Propulsion Shielding 33 Evasion (%) 50 Recoil Reduction 2 Item Schematics ----------------- Hrd. Medium Armor Plating | -9/Materials | Scanalyzed Robot Schematics ------------------ None Fabricated ------------ Nothing Alien Tech Used ----------------- None Achievements -------------- None Challenges ------------ None Game ------ Seed MiniMetafiberBuckler Manual? 0 Play Time 00:22:15 Cumulative 10.2 hours Start 2022.07.06 @ 19:02:03 End 2022.07.06 @ 19:23:56 Sessions 1 Manual Loads 0 Difficulty Rogue Special Mode None Game No. 25 Rogue 25 Adventurer 0 Explorer 0 Win Type - Total 0 Types 0/0/0/0/0/0/0/0/0 Lore% 14 Gallery% 22 Achievement% 14 Wizard Run 0 Options --------- ASCII 0 Keyboard 0 Movement Numpad Keybinds 0 Fullscreen 2 Font 24/Proggy Map View 76x50 Tactical HUD 1 Map Filters NONE Filters NONE Steam 1 RUN: 16d338b2-a071-4212-bcce-1c897cf2f41b